bitfinex-derivatives/quotes_ETHF0:USTF0_20250620
["timestamp","ask_amount","ask_price","bid_price","bid_amount"]
[1750383185899,0.79364,2519.7,2519.6,1.42681]
[1750383186285,1.79679984,2519.7,2519.6,1.42681]
[1750383189498,0.79364,2519.7,2519.6,1.42681]
[1750383189686,6.221,2519.9,2519.6,0.6332]
[1750383189894,7.01454,2519.9,2519.8,3.2078]
[1750383190187,7.01454,2519.9,2519.8,4.00136]
[1750383190392,0.79356,2519.8,2519.7,0.6721]
[1750383190591,2.50255686,2519.8,2519.5,3.2078]
[1750383190892,0.79363,2519.6,2519.5,3.2078]
[1750383192392,1.98425,2519.4,2518.8,3.2078]
[1750383192596,0.79381,2519.1,2519.0,0.689]
[1750383193298,0.79381,2519.1,2519.0,1.48282]
[1750383195100,0.79381,2519.1,2519.0,0.689]
[1750383197108,0.79383,2519.0,2518.9,0.06933781]
[1750383198203,4.00163,2519.0,2518.9,0.06933781]
[1750383198411,5.25343,2519.0,2518.9,0.06933781]
[1750383199310,3.2078,2519.0,2518.9,3.36575467]
[1750383199611,0.79376,2519.3,2519.2,0.79375]
[1750383199810,0.79376,2519.3,2519.2,3.29630686]
[1750383200115,0.79374,2519.3,2519.2,3.29630686]
[1750383200308,0.79372,2519.4,2519.3,0.79374]
[1750383201313,0.79368,2519.5,2519.4,0.79367]
[1750383202516,0.79374,2519.4,2519.3,0.79371]
[1750383204110,0.79374,2519.3,2519.2,2.50255686]
[1750383204313,0.79374,2519.3,2519.2,0.79377]
[1750383204713,5.192,2519.5,2519.1,6.217]
[1750383204912,0.79377,2519.3,2519.2,0.79375]
[1750383205809,0.79373,2519.4,2519.3,0.79371]
[1750383208510,0.79374,2519.3,2519.2,3.29630686]
[1750383208710,0.79377,2519.2,2519.1,4.00157]
[1750383209322,0.79376,2519.3,2519.2,0.79372]
[1750383210817,3.2078,2519.6,2519.2,2.50255686]
[1750383211018,0.79371,2519.5,2519.4,0.79368]
[1750383213709,0.79376,2519.4,2519.3,0.79372]
[1750383214620,0.7938,2519.2,2519.1,0.79377]
[1750383214820,0.79376,2519.3,2519.2,0.79372]
[1750383222916,0.79373,2519.5,2519.4,0.79368]
[1750383223120,1.98402,2519.8,2519.7,0.79356]
[1750383223121,0.79361,2519.8,2519.7,0.79356]
[1750383223624,0.79357,2519.9,2519.8,0.79355]
[1750383224216,1.79575355,2519.9,2519.8,0.79355]
[1750383224421,0.79357,2519.9,2519.8,0.79355]
[1750383224618,0.79358,2519.8,2519.7,1.42929]
[1750383225024,0.79357,2519.9,2519.8,0.79356]
[1750383227123,0.79357,2519.9,2519.7,0.6357]
[1750383227330,0.79358,2519.8,2519.7,1.42929]
[1750383229327,0.79355,2520.0,2519.9,0.79353]
[1750383229528,5.19146,2520.2,2520.0,0.7935]
[1750383229529,0.79352,2520.1,2520.0,0.7935]
[1750383229828,0.79349,2520.1,2520.0,0.7935]
[1750383230928,4.00127,2520.2,2520.1,0.79349]
[1750383231428,0.79349,2520.1,2520.0,1.4246]
[1750383232728,0.79349,2520.1,2520.0,0.6311]
[1750383233033,0.79355,2520.0,2519.9,0.79351]
[1750383234026,0.79351,2520.1,2520.0,0.79349]
[1750383238637,4.00128,2520.2,2520.1,0.79349]
[1750383239337,0.79348,2520.2,2520.1,0.79349]
[1750383240724,0.79355,2520.0,2519.9,0.79351]
[1750383240930,0.79355,2520.0,2519.9,0.79355]
[1750383241334,1.44815,2520.0,2519.9,0.79355]
[1750383242040,0.79364,2519.7,2519.6,0.79361]
[1750383242536,0.79364,2519.6,2519.5,4.00145]
[1750383243740,0.79364,2519.7,2519.6,0.79361]
[1750383244640,0.79371,2519.5,2519.4,0.79368]
[1750383245344,0.79371,2519.4,2519.3,1.47711]
[1750383246342,0.79369,2519.5,2519.4,0.79368]
[1750383247349,1.41777,2519.6,2519.5,0.79368]
[1750383247943,0.7938,2519.1,2519.0,0.79381]
[1750383248134,0.79383,2519.0,2518.9,1.47774]
[1750383249046,1.41902,2519.1,2519.0,0.79383]
[1750383249543,1.419,2519.1,2519.0,0.79383]
[1750383250439,1.2742,2519.3,2519.2,0.79377]
[1750383250647,0.6721,2519.4,2519.3,0.79374]
[1750383250648,1.43773,2519.4,2519.3,0.79374]
[1750383250845,0.79373,2519.4,2519.3,0.79374]
[1750383251148,7.03469,2519.5,2519.4,0.79371]
[1750383251751,0.79371,2519.4,2519.3,1.45352]
[1750383255450,0.7937,2519.5,2519.4,0.79367]
[1750383257943,1.2987,2519.7,2519.4,2.50255686]
[1750383258151,1.2987,2519.7,2519.6,0.79364]
[1750383258352,4.6443,2519.8,2519.7,0.79361]
[1750383258951,1.4365,2519.8,2519.7,0.79361]
[1750383261154,1.4365,2519.8,2519.7,0.86294781]
[1750383265256,2.7936,2519.8,2519.7,0.86294781]
[1750383265958,0.7936,2519.8,2519.7,0.86294781]
[1750383268058,0.7936,2519.8,2519.7,1.50064781]
[1750383280457,0.79357,2519.9,2519.8,0.79355]
[1750383281563,3.2078,2520.0,2519.7,1.50064781]
[1750383281866,3.2078,2520.0,2519.9,0.79355]
[1750383282767,6.222,2520.3,2520.2,0.79345]
[1750383282970,7.22326649,2520.3,2520.2,0.79345]
[1750383283565,8.01668649,2520.3,2520.2,0.79345]
[1750383284269,0.79345,2520.2,2520.1,2.08346]
[1750383286671,1.47765,2520.2,2520.1,2.08346]
[1750383287371,0.79345,2520.2,2520.1,2.08346]
[1750383288271,0.79345,2520.2,2520.1,1.29]
[1750383288764,0.79345,2520.2,2520.1,2.08349]
[1750383288965,0.79345,2520.2,2520.1,1.29]
[1750383289472,0.79345,2520.2,2520.1,2.08349]
[1750383290475,0.79355,2520.0,2519.9,0.79351]
[1750383291470,0.79355,2519.9,2519.8,0.6242]
[1750383292366,0.79355,2519.9,2519.8,1.41776]
[1750383293869,4.00135,2519.9,2519.8,0.6242]
[1750383294079,1.98396,2519.8,2519.1,3.17493429]
[1750383294271,0.7938,2519.1,2519.0,4.62045429]
[1750383294473,0.7938,2519.1,2519.0,1.44552]
[1750383294669,1.427,2519.2,2519.1,0.7938]
[1750383294869,0.7938,2519.1,2519.0,1.44551]
[1750383296576,1.42699,2519.2,2519.1,0.7938]
[1750383296780,0.79379,2519.2,2519.1,0.7938]
[1750383298479,9.4278,2519.5,2519.0,3.15425686]
[1750383298787,4.00142,2519.8,2519.7,0.79361]
[1750383300375,0.79364,2519.7,2519.6,0.79362]
[1750383301069,0.79364,2519.6,2519.5,1.3119]
[1750383301270,0.79364,2519.6,2519.5,2.10557]
[1750383302183,0.79373,2519.4,2519.3,0.7937]
[1750383302678,0.7937,2519.5,2519.4,0.79368]
[1750383304683,0.79377,2519.3,2519.2,0.79375]
[1750383305183,0.79377,2519.2,2519.1,4.63718]
[1750383307583,1.98459,2519.0,2518.5,3.17493429]
[1750383307780,0.79398,2518.6,2518.5,0.79395]
[1750383308080,5.19256,2518.8,2518.4,0.6442]
[1750383308081,0.79399,2518.5,2518.4,0.6442]
[1750383308687,0.79399,2518.5,2518.4,1.43822]
[1750383308881,0.79399,2518.5,2518.4,0.6442]
[1750383309091,4.52015686,2518.7,2518.2,1.3132]
[1750383309385,0.6295,2519.1,2518.9,0.79385]
[1750383309571,0.79387,2519.0,2518.9,0.79385]
[1750383309777,0.79388,2518.9,2518.8,0.79387]
[1750383309981,1.98444,2519.2,2518.7,3.14675686]
[1750383309982,0.7939,2518.8,2518.7,3.94066686]
[1750383310585,0.7939,2518.8,2518.7,1.43811]
[1750383312082,0.79388,2518.9,2518.8,0.79387]
[1750383313484,0.79385,2519.0,2518.9,0.79383]
[1750383313681,0.79381,2519.1,2519.0,0.79383]
[1750383313886,0.7938,2519.2,2519.1,0.79379]
[1750383314787,0.79375,2519.3,2519.2,0.79374]
[1750383315187,0.79375,2519.3,2519.2,1.43404]
[1750383316186,3.2078,2519.8,2519.2,5.1426]
[1750383316392,0.79374,2519.4,2519.3,0.646]
[1750383317083,0.79374,2519.4,2519.3,1.43974]
[1750383318888,0.79374,2519.4,2519.3,0.646]
[1750383319091,0.79374,2519.4,2518.9,3.2078]
[1750383319092,0.7938,2519.2,2519.1,0.79378]
[1750383320598,2.06461,2519.5,2519.4,0.79371]
[1750383320892,0.79367,2519.5,2519.4,0.79371]
[1750383321391,0.79367,2519.6,2519.5,0.79367]
[1750383322497,0.79367,2519.6,2519.5,1.41937]
[1750383324292,0.79364,2519.7,2519.6,0.79361]
[1750383324594,0.79364,2519.6,2519.5,1.41936]
[1750383325695,0.79364,2519.6,2519.5,1.41937]
[1750383325888,0.79364,2519.6,2519.5,0.79367]
[1750383329602,0.79355,2519.9,2519.8,0.79355]
[1750383330392,0.79355,2519.9,2519.8,1.44455]
[1750383331003,0.79355,2519.9,2519.8,0.79355]
[1750383331200,0.79358,2519.8,2519.7,1.42989]
[1750383331998,0.79358,2519.8,2519.7,0.79359]
[1750383332692,0.79361,2519.7,2519.6,1.44461]
[1750383333390,0.79367,2519.6,2519.4,0.6267]
[1750383333589,0.79367,2519.5,2519.4,1.2715]
[1750383334102,0.79367,2519.5,2519.4,2.06517]
[1750383335300,0.79367,2519.5,2519.4,2.13450781]
[1750383337300,0.79367,2519.5,2519.4,0.06933781]
[1750383337510,2.04617,2519.5,2519.4,0.06933781]
[1750383343406,0.79385,2519.1,2519.0,0.79381]
[1750383345300,4.00161,2519.2,2519.1,0.7938]
[1750383345501,5.24961,2519.2,2519.1,0.7938]
[1750383345900,2.04181,2519.2,2519.1,0.7938]
[1750383348104,0.79383,2519.1,2519.0,0.79382]
[1750383349609,2.04179,2519.2,2519.1,0.7938]
[1750383350108,0.79376,2519.3,2519.2,0.79374]
[1750383351510,1.43834,2519.4,2519.3,0.79374]
[1750383352008,0.79369,2519.5,2519.4,0.79371]
[1750383353605,0.79371,2519.4,2519.3,1.43801]
[1750383354004,0.79371,2519.4,2519.3,0.79371]
[1750383354205,1.46031,2519.4,2519.3,0.79371]
[1750383354605,0.79374,2519.3,2519.2,1.44395]
[1750383354806,1.46031,2519.4,2519.3,0.79374]
[1750383355008,2.70621,2519.4,2519.3,0.79374]
[1750383356111,2.70621,2519.4,2519.2,1.44395]
[1750383356312,0.79374,2519.3,2519.2,0.6502]
[1750383356609,2.70623,2519.4,2519.2,1.44397]
[1750383356806,0.79374,2519.3,2519.2,1.44397]
[1750383357012,2.70624,2519.4,2519.2,1.44397]
[1750383357209,0.79374,2519.3,2519.2,1.44397]
[1750383357714,4.00154,2519.3,2519.2,0.6502]
[1750383358214,0.79377,2519.2,2519.1,0.6227]
[1750383358413,0.7938,2519.2,2519.0,1.53204781]
[1750383358615,0.7938,2519.2,2519.1,0.7938]
[1750383359112,0.7938,2519.2,2519.0,1.53203781]
[1750383359414,0.7938,2519.1,2519.0,1.53204781]
[1750383359912,2.06159,2519.2,2519.1,0.7938]
[1750383360714,0.7938,2519.1,2519.0,1.53205781]
[1750383360914,1.2678,2519.2,2519.1,0.7938]
[1750383361113,0.79375,2519.3,2519.2,0.79377]
[1750383361612,0.6666,2519.4,2519.2,0.79377]
[1750383361808,1.46033,2519.4,2519.3,0.79374]
[1750383362515,0.79374,2519.3,2519.2,0.79374]
[1750383362918,0.6666,2519.4,2519.0,1.53204781]
[1750383362919,0.7938,2519.1,2519.0,1.53204781]
[1750383363107,2.65093,2519.4,2519.0,0.73823781]
[1750383363108,0.6666,2519.4,2519.0,0.73823781]
[1750383363418,1.9357,2519.4,2519.0,0.73823781]
[1750383363609,0.79375,2519.3,2519.2,0.79375]
[1750383364214,2.72943,2519.4,2519.3,0.79374]
[1750383364516,3.73043262,2519.4,2519.3,0.79374]
[1750383364713,3.73043082,2519.4,2519.3,0.79374]
[1750383364915,2.72943,2519.4,2519.3,0.79374]
[1750383365116,0.79375,2519.3,2519.2,0.79375]
[1750383365414,0.79368,2519.5,2519.4,0.79371]
[1750383365611,1.79486024,2519.5,2519.4,0.79371]
[1750383366118,0.79374,2519.3,2519.2,0.06933781]
[1750383366419,6.50409686,2519.3,2519.2,0.06933781]
[1750383366716,7.50546507,2519.3,2519.2,0.06933781]
[1750383366912,8.79036507,2519.3,2519.2,0.06933781]
[1750383367717,6.28780821,2519.3,2519.2,0.06933781]
[1750383369213,6.28780821,2519.3,2519.2,0.86310781]
[1750383369516,6.28780821,2519.3,2519.2,0.06933781]
[1750383369910,11.81056507,2519.3,2519.2,0.06933781]
[1750383370115,0.79395,2518.7,2518.3,9.40293429]
[1750383370311,0.79396,2518.6,2518.5,0.6384]
[1750383370518,0.79395,2518.7,2518.5,1.43237]
[1750383370713,0.79395,2518.7,2518.6,0.79396]
[1750383371319,5.98732,2518.8,2518.6,0.79396]
[1750383371525,5.98732,2518.8,2518.6,0.79394]
[1750383371825,0.79393,2518.7,2518.6,0.79394]
[1750383372015,0.79393,2518.7,2518.5,1.43236]
[1750383372320,1.3289,2518.6,2518.5,0.79399]
[1750383372514,9.4358,2519.4,2518.8,1.98475]
[1750383372710,1.00136609,2519.3,2518.9,3.78025686]
[1750383373022,1.00136609,2519.2,2519.1,0.79379]
[1750383373211,1.79513609,2519.2,2519.0,0.79381]
[1750383373520,1.79516609,2519.1,2519.0,0.79381]
[1750383374025,1.79516609,2519.1,2518.9,2.07154]
[1750383374217,0.7938,2519.1,2519.0,0.79383]
[1750383374413,1.79510075,2519.2,2519.0,0.79383]
[1750383374718,1.00131075,2519.1,2519.0,0.79383]
[1750383375119,1.79511075,2519.1,2519.0,0.79383]
[1750383375323,9.4358,2519.4,2519.3,0.79374]
[1750383375525,10.22951,2519.4,2519.2,0.79375]
[1750383375726,10.22951,2519.4,2519.3,0.6838]
[1750383376328,9.4358,2519.4,2519.3,1.47754]
[1750383379330,3.2078,2519.4,2519.3,1.47754]
[1750383379630,4.00151,2519.4,2519.3,1.47754]
[1750383380728,4.00151,2519.4,2519.3,0.6838]
[1750383380927,4.00151,2519.4,2519.3,1.54687781]
[1750383381334,4.00151,2519.4,2519.3,0.75313781]
[1750383381739,4.00151,2519.4,2519.3,1.54687781]
[1750383381934,4.00151,2519.4,2519.3,0.75313781]
[1750383382135,4.00151,2519.4,2519.3,1.54687781]
[1750383382637,4.00151,2519.4,2519.3,0.75313781]
[1750383383340,4.00151,2519.4,2519.3,1.54687781]
[1750383384628,3.2078,2519.4,2519.3,1.54687781]
[1750383385038,4.00151,2519.4,2519.3,1.54687781]
[1750383387345,3.2078,2519.4,2519.3,1.54687781]
[1750383387842,4.00151,2519.4,2519.3,1.54687781]
[1750383388841,0.79371,2519.4,2519.3,1.54687781]
[1750383390846,0.7937,2519.5,2519.4,0.79368]
[1750383391147,0.79371,2519.4,2519.3,1.54685781]
[1750383393142,0.79371,2519.4,2519.3,0.06933781]
[1750383393552,2.74701,2519.4,2519.3,0.86307781]
[1750383395151,2.74701,2519.4,2519.3,0.79374]
[1750383396349,0.79371,2519.4,2519.3,0.79374]
[1750383396549,1.45551,2519.4,2519.3,0.79374]
[1750383397349,0.6618,2519.4,2519.3,0.79374]
[1750383397539,0.7937,2519.5,2519.4,0.79371]
[1750383397744,1.79522973,2519.5,2519.4,0.79371]
[1750383397945,0.79374,2519.4,2519.3,0.79371]
[1750383399753,0.79371,2519.5,2519.4,0.79368]
[1750383399955,1.79522907,2519.5,2519.4,0.79368]
[1750383401350,1.00151907,2519.5,2519.4,0.79368]
[1750383401855,0.79362,2519.7,2519.6,0.79364]
[1750383402055,1.79547718,2519.7,2519.6,0.79364]
[1750383402258,1.00185718,2519.7,2519.6,0.79364]
[1750383402458,1.79546718,2519.7,2519.6,0.79364]
[1750383402652,1.00185718,2519.7,2519.6,0.79364]
[1750383402957,1.79546718,2519.7,2519.6,0.79364]
[1750383403948,1.00185718,2519.7,2519.4,1.2937]
[1750383404150,0.79368,2519.5,2519.4,0.6721]
[1750383404458,0.79368,2519.5,2519.4,0.79368]
[1750383405254,1.79638541,2519.5,2519.4,0.79368]
[1750383406260,2.46358541,2519.5,2519.4,0.79368]
[1750383408551,0.79374,2519.4,2519.3,0.79373]
[1750383409358,1.4609,2519.5,2519.4,0.79371]
[1750383409660,2.46308361,2519.5,2519.4,0.79371]
[1750383410661,0.79374,2519.4,2519.3,0.79371]
[1750383412960,0.79374,2519.3,2519.2,3.8434]
[1750383413160,0.79385,2519.0,2518.9,0.79382]
[1750383413362,0.79385,2519.0,2518.9,1.46482]
[1750383415265,0.79382,2519.1,2519.0,0.7938]
[1750383417666,0.79382,2519.1,2518.9,0.671]
[1750383417667,6.223,2519.3,2519.1,0.7938]
[1750383417866,0.79377,2519.2,2519.1,0.7938]
[1750383418461,0.79383,2519.1,2519.0,0.79381]
[1750383420063,0.79379,2519.2,2519.1,0.79377]
[1750383421165,0.79383,2519.1,2519.0,0.7938]
[1750383424574,0.79383,2519.1,2519.0,0.86313781]
[1750383424775,1.44783,2519.1,2519.0,0.86313781]
[1750383424977,0.79383,2519.1,2519.0,0.86313781]
[1750383427379,0.79383,2519.1,2519.0,0.06933781]
[1750383428370,2.15253,2519.1,2519.0,0.06933781]
[1750383432888,2.15253,2519.1,2519.0,0.86316781]
[1750383433094,0.79383,2519.1,2519.0,0.06933781]
[1750383434776,10.7413,2519.4,2519.2,0.79374]
[1750383434982,12.085,2519.7,2519.5,0.79364]
[1750383435181,12.085,2519.7,2519.6,0.6467]
[1750383435376,13.88158416,2519.7,2519.6,1.44034]
[1750383435782,1.00297416,2519.7,2519.6,1.44034]
[1750383436083,1.79658416,2519.7,2519.6,1.44034]
[1750383436483,1.00297416,2519.7,2519.6,1.44034]
[1750383437890,0.79361,2519.7,2519.6,1.44034]
[1750383438094,0.79361,2519.7,2519.6,0.6467]
[1750383442292,0.79374,2519.4,2519.3,0.79372]
[1750383442494,0.79374,2519.4,2519.3,1.43792]
[1750383443785,0.79374,2519.4,2519.3,0.6442]
[1750383446192,0.79374,2519.4,2519.3,1.43794]
[1750383446600,0.79374,2519.4,2519.3,0.6442]
[1750383447098,0.79374,2519.4,2519.3,1.43794]
[1750383451994,0.6658,2519.7,2519.5,0.79364]
[1750383452193,0.79364,2519.6,2519.5,0.79364]
[1750383457501,3.2078,2519.8,2519.4,4.48678686]
[1750383457704,4.00138,2519.8,2519.7,0.79361]
[1750383458206,4.00138,2519.8,2519.7,1.47401]
[1750383459504,0.79358,2519.8,2519.7,1.47401]
[1750383460402,0.79357,2520.0,2519.9,0.79352]
[1750383466616,5.83315,2520.2,2519.8,1.46597]
[1750383466617,0.79355,2519.9,2519.8,1.46597]
[1750383470018,0.79355,2519.9,2519.8,0.79357]
[1750383475431,0.79358,2519.8,2519.7,2.14389]
[1750383476317,0.79358,2519.9,2519.8,0.79355]
[1750383485325,1.46588,2519.9,2519.8,0.79355]
[1750383488637,4.48632686,2520.1,2520.0,0.79349]
[1750383488638,0.79352,2520.1,2520.0,0.79349]
[1750383488838,1.79007213,2520.1,2520.0,0.79349]
[1750383493238,0.79356,2520.0,2519.9,0.79352]
[1750383493438,1.79011213,2520.0,2519.9,0.79352]
[1750383495541,1.79006213,2520.0,2519.9,0.79352]
[1750383495732,0.99655213,2520.0,2519.9,0.79352]
[1750383495935,0.7935,2520.1,2520.0,0.79351]
[1750383496137,0.79346,2520.2,2520.1,0.79348]
[1750383496438,1.79029318,2520.2,2520.1,1.46498]
[1750383497237,0.99683318,2520.2,2520.1,1.46498]
[1750383497432,1.79028318,2520.2,2520.1,1.46498]
[1750383498339,1.79041187,2520.2,2520.1,1.46498]
[1750383498540,0.79345,2520.2,2520.1,1.46498]
[1750383498844,0.79346,2520.3,2520.2,0.79343]
[1750383499032,0.7933,2520.7,2520.6,0.79333]
[1750383499840,7.01429,2520.8,2520.7,0.7933]
[1750383500140,3.8443,2520.9,2520.8,0.79327]
[1750383500141,3.2078,2520.9,2520.8,0.79327]
[1750383500534,0.79316,2521.2,2521.1,0.79314]
[1750383501845,0.79319,2521.1,2521.0,0.79319]
[1750383502439,0.79321,2521.0,2520.9,2.14931]
[1750383504145,0.7932,2521.1,2521.0,0.7932]
[1750383504345,0.79321,2521.0,2520.9,2.14932]
[1750383504648,0.86254781,2521.0,2520.9,2.14932]
[1750383505641,0.79321,2521.0,2520.9,2.14932]
[1750383507348,0.7932,2521.1,2521.0,0.79318]
[1750383508246,0.79317,2521.2,2521.1,0.79314]
[1750383508544,0.06933781,2521.4,2521.3,0.79311]
[1750383508752,7.5498,2521.6,2521.5,0.79305]
[1750383509045,8.34285,2521.6,2521.5,0.79305]
[1750383509247,3.8492,2521.7,2521.5,0.79305]
[1750383509248,3.2078,2521.7,2521.6,0.79302]
[1750383509649,4.00079,2521.7,2521.6,0.79302]
[1750383509846,0.79302,2521.6,2521.5,1.42932]
[1750383510352,4.00081,2521.7,2521.6,0.79302]
[1750383510948,0.79301,2521.7,2521.6,0.79302]
[1750383511143,0.79298,2521.8,2521.7,0.79297]
[1750383511347,2.08008,2521.8,2521.7,0.79297]
[1750383511658,0.79298,2521.8,2521.7,0.79297]
[1750383511946,0.79302,2521.7,2521.6,0.793]
[1750383514047,0.79299,2521.8,2521.7,0.79297]
[1750383514251,0.79302,2521.7,2521.6,0.793]
[1750383517553,0.06933781,2522.0,2521.9,0.79292]
[1750383517743,0.06933781,2522.0,2521.9,3.29547686]
[1750383517944,4.00065,2522.2,2522.1,0.79286]
[1750383518346,3.2078,2522.2,2522.1,0.79286]
[1750383518546,4.00063,2522.2,2522.1,0.79286]
[1750383519238,1.3283,2522.4,2521.9,2.50255686]
[1750383519439,2.12109,2522.4,2522.3,0.7928]
[1750383519655,7.64096,2522.5,2522.4,0.79277]
[1750383520848,8.98226,2522.5,2522.4,0.79277]
[1750383521251,0.6322,2522.5,2522.4,0.79277]
[1750383521849,7.4725,2522.8,2522.6,0.79268]
[1750383522155,3.2078,2522.9,2522.8,0.79264]
[1750383522454,3.2078,2523.2,2522.7,3.80605686]
[1750383522650,4.4653,2523.2,2522.9,0.7926]
[1750383522854,1.2575,2523.1,2522.7,3.80605686]
[1750383523058,2.05006,2523.1,2523.0,0.79258]
[1750383523254,0.79256,2523.1,2523.0,0.79258]
[1750383523857,4.00033,2523.2,2523.1,0.79255]
[1750383524348,1.933,2523.3,2523.2,0.79252]
[1750383524547,3.2078,2523.5,2523.4,0.79245]
[1750383525252,1.3204,2523.9,2523.7,0.79236]
[1750383525253,3.2078,2523.8,2523.7,0.79236]
[1750383525452,0.79237,2523.7,2523.6,0.79237]
[1750383525756,0.7924,2523.6,2523.5,0.7924]
[1750383526157,0.79238,2523.7,2523.6,0.79238]
[1750383526452,4.5282,2523.9,2523.4,0.6824]
[1750383526453,3.2078,2523.9,2523.8,0.79233]
[1750383527157,3.2078,2524.2,2524.0,0.79226]
[1750383527349,0.79226,2524.1,2524.0,0.79226]
[1750383528556,3.2078,2524.2,2523.9,2.50255686]
[1750383528748,1.42078,2524.3,2524.2,0.7922]
[1750383528952,3.2078,2524.5,2524.1,5.71035686]
[1750383529153,3.99991,2524.5,2524.4,0.79214]
[1750383529455,3.99993,2524.5,2524.4,0.79214]
[1750383529657,0.79214,2524.4,2524.3,0.79216]
[1750383530155,0.79219,2524.3,2524.2,0.7922]
[1750383530552,2.50255686,2524.3,2524.0,0.6871]
[1750383530748,0.79229,2524.0,2523.9,0.79229]
[1750383531351,1.33753781,2524.4,2523.9,0.79229]
[1750383531352,0.79224,2524.1,2524.0,0.79224]
[1750383531744,0.79225,2524.1,2524.0,0.79225]
[1750383532562,0.79226,2524.1,2524.0,0.79225]
[1750383532855,1.98045,2524.3,2523.8,3.8648]
[1750383533163,3.84009467,2524.4,2523.8,1.44933]
[1750383533164,0.7923,2523.9,2523.8,1.44933]
[1750383533463,0.7923,2523.9,2523.8,0.657]
[1750383533761,0.7923,2523.9,2523.8,1.44933]
[1750383534155,0.7923,2523.9,2523.8,0.657]
[1750383534763,0.7923,2523.9,2523.8,1.44933]
[1750383535372,0.7923,2523.9,2523.8,0.657]
[1750383536064,0.79233,2523.8,2523.7,0.6867]
[1750383536868,10.71035686,2523.8,2523.0,0.79254]
[1750383537066,5.18901,2523.4,2523.0,1.3213]
[1750383537267,0.79255,2523.1,2523.0,2.11384]
[1750383538771,0.79253,2523.2,2523.1,0.79253]
[1750383539466,0.79253,2523.2,2523.1,3.29508686]
[1750383543369,0.79253,2523.2,2523.1,6.50288686]
[1750383543674,0.79232,2523.9,2523.8,0.7923]
[1750383543873,3.2078,2524.0,2523.9,0.7923]
[1750383543874,4.0001,2524.0,2523.9,0.7923]
[1750383544477,4.0001,2524.0,2523.8,2.50255686]
[1750383544478,0.7923,2523.9,2523.8,3.29485686]
[1750383544681,0.7923,2523.9,2523.8,2.50255686]
[1750383544883,0.79233,2523.8,2523.7,2.08434]
[1750383545381,1.2912,2524.0,2523.8,0.7923]
[1750383545382,0.79233,2523.9,2523.8,0.7923]
[1750383545683,0.79233,2523.8,2523.7,2.08433]
[1750383546987,0.79231,2523.9,2523.8,0.7923]
[1750383547387,0.06933781,2524.0,2523.9,0.7923]
[1750383548186,0.86159781,2524.0,2523.9,0.7923]
[1750383548577,0.06933781,2524.0,2523.9,0.7923]
[1750383548775,0.06933781,2524.0,2523.9,4.0001]
[1750383548974,0.06933781,2524.0,2523.9,5.3518]
[1750383549381,0.06933781,2524.0,2523.9,4.0001]
[1750383550282,0.06933781,2524.0,2523.9,5.3518]
[1750383552593,6.307,2524.5,2524.4,0.79214]
[1750383552794,0.79211,2524.6,2524.5,0.79208]
[1750383553293,0.79208,2524.6,2524.5,0.79208]
[1750383554394,0.79213,2524.5,2524.4,0.79209]
[1750383554586,6.307,2524.8,2524.3,1.2752]
[1750383554896,4.63967,2524.7,2524.6,0.79208]
[1750383555191,0.79212,2524.6,2524.5,0.79208]
[1750383555392,0.79214,2524.4,2524.3,1.2752]
[1750383555592,0.79217,2524.3,2524.2,3.99997]
[1750383556690,0.79224,2524.2,2524.1,0.79221]
[1750383556897,1.98021,2524.6,2524.1,1.98059]
[1750383557089,0.7922,2524.2,2524.1,3.2078]
[1750383557493,0.7922,2524.2,2524.1,4.00003]
[1750383557992,2.0558,2524.2,2524.1,4.00003]
[1750383558599,2.0558,2524.2,2524.1,3.2078]
[1750383558796,2.0558,2524.2,2524.1,4.00003]
[1750383559501,0.06933781,2524.2,2524.1,4.00003]
[1750383566799,0.06933781,2524.2,2524.1,7.13818003]
[1750383574011,0.06933781,2524.2,2524.1,9.50906198]
[1750383576611,0.06933781,2524.2,2524.1,7.13818003]
[1750383578711,0.6896,2524.6,2524.5,0.79215]
[1750383580015,1.48172,2524.6,2524.5,0.79215]
[1750383580215,2.79712,2524.6,2524.5,0.79215]
[1750383583714,2.79712,2524.6,2524.4,2.37407448]
[1750383583715,0.79215,2524.5,2524.4,2.37407448]
[1750383583914,2.05775,2524.5,2524.4,0.79218]
[1750383584621,0.79218,2524.4,2524.3,3.16626448]
[1750383584916,2.05778,2524.4,2524.3,3.16626448]
[1750383585105,1.2656,2524.4,2524.3,3.16626448]
[1750383585414,2.05778,2524.4,2524.3,3.16626448]
[1750383585618,1.48173,2524.6,2524.5,0.79215]
[1750383585814,2.45931713,2524.6,2524.5,0.79215]
[1750383586009,2.94328713,2524.6,2524.3,2.37407448]
[1750383586318,2.94328713,2524.6,2524.1,3.2078]
[1750383586319,0.79224,2524.2,2524.1,0.79227]
[1750383586911,0.86157781,2524.2,2524.1,0.79227]
[1750383587111,0.79227,2524.1,2524.0,3.16636448]
[1750383587517,2.06837,2524.1,2524.0,3.16636448]
[1750383587819,1.2761,2524.1,2524.0,3.16636448]
[1750383588509,2.06837,2524.1,2524.0,3.16636448]
[1750383589319,1.2761,2524.1,2524.0,3.16636448]
[1750383589620,0.74923781,2524.2,2524.1,0.79227]
[1750383590010,0.6799,2524.2,2524.1,1.42817]
[1750383591223,1.47215,2524.2,2524.1,1.42817]
[1750383591517,0.6799,2524.2,2524.1,1.42817]
[1750383592219,2.09138,2524.5,2524.4,0.79219]
[1750383592413,9.95642095,2524.5,2524.4,0.79219]
[1750383592822,8.97935,2524.5,2524.4,0.79219]
[1750383594416,9.95757571,2524.5,2524.4,0.79219]
[1750383594917,9.95587281,2524.5,2524.4,0.79219]
[1750383595312,8.97935,2524.5,2524.4,0.79219]